{"text_format":"3","workbook":"xlsx","n_sheets":3,"sheets":["Début","Portefeuille","Répartition des actifs"],"not_rendered":{"charts":1,"images":6,"defined_names":1},"read":"whole","date_system":"1900"}

{"sheet":"Début","index":0,"n_rows":29,"n_cols":2,"rows_kept":29}
["Suivi des investissements","Suivi des investissements"]
[]
["Le modèle Suivi des investissements vous permet de suivre vos placements et votre répartition des actifs. Le type de données Actions d’Excel tient votre portefeuille à jour avec les cours et les détails de vos actifs. Il existe deux feuilles de calcul, Portefeuille et Répartition des actifs, décrites ci-dessous. Remarque : Le type de données Actions Excel est une fonctionnalité Office 365 disponible exclusivement par abonnement. "]
[]
["Portefeuille","Portefeuille"]
["Ajoutez vos placements, tapez des symboles de titre, des noms de société ou de fonds par-dessus les exemples, ou ajoutez-en sur des lignes supplémentaires. Sélectionnez une catégorie d’actifs, puis entrez le nombre de parts."]
["Cliquez sur le bouton Ajouter une colonne pour ajouter des colonnes telles que Symbole du titre ou Change."]
{"$rows_empty":13}
["Pour actualiser les données, cliquez sur l’une des actions. Sous l’onglet Données , dans le groupe Requêtes et connexions, cliquez sur Actualiser tout ou appuyez sur Ctrl+Alt+F5."]
[]
[]
[]
[]
["Répartition des actifs","Répartition des actifs"]
[]
["Modifiez Catégories et Mon objectif pour personnaliser les objectifs de votre portefeuille."]
["Quand une catégorie d’actifs dépasse la valeur de Seuil, les montants sont surlignés en jaune."]

{"sheet":"Portefeuille","index":1,"n_rows":12,"n_cols":9,"rows_kept":12}
["Suivi des investissements","Suivi des investissements"]
[]
["Portefeuille","Portefeuille"]
[]
["Voici un tableau avec les actions existantes dans les cellules B5:I11 et un total à la ligne 12. Entrez un nom de société dans les cellules B5:B11, puis accédez à Données > Actualiser ou appuyez sur Ctrl+Alt+F5.","Société","Catégorie","Parts","Cours","Change","Change (%)","% du portefeuille","Valeur"]
["Ajoutez vos placements, tapez des symboles de titre, des noms de société ou de fonds par-dessus les exemples, ou ajoutez-en sur des lignes supplémentaires.  Sélectionnez une catégorie d’actifs, puis entrez le nombre de parts.",{"$error":"#VALUE!"},"Actions France",{"v":1200,"d":"1,200 "},{"$f":"_FV(TableauPortefeuille[[#This Row],[Société]],\"Price\")","v":{"v":105.21,"d":"105.21 €"}},{"$f":"_FV(TableauPortefeuille[[#This Row],[Société]],\"Change\")","v":{"v":-0.24,"d":"-0.24 €"}},{"$f":"_FV(TableauPortefeuille[[#This Row],[Société]],\"Change (%)\",TRUE)","v":{"v":-0.002276,"d":"-0.23%"}},{"$f":"IFERROR(I6/SUBTOTAL(109,TableauPortefeuille[Valeur]),\"\")","v":{"v":0.5974736139719061,"d":"60%"}},{"$f":"D6 * E6","v":{"v":126251.99999999999,"d":"126,252.00 €"}}]
["Cliquez sur le bouton Ajouter une colonne pour ajouter des colonnes telles que Symbole du titre ou Change.",{"$error":"#VALUE!"},"Obligations",{"v":1300,"d":"1,300 "},{"$f":"_FV(TableauPortefeuille[[#This Row],[Société]],\"Price\")","v":{"v":10.46,"d":"10.46 €"}},{"$f":"_FV(TableauPortefeuille[[#This Row],[Société]],\"Change\")","v":{"v":0.0122760756111569,"d":"0.01 €"}},{"$f":"_FV(TableauPortefeuille[[#This Row],[Société]],\"Change (%)\",TRUE)","v":{"v":1.1749999999999998E-3,"d":"0.12%"}},{"$f":"IFERROR(I7/SUBTOTAL(109,TableauPortefeuille[Valeur]),\"\")","v":{"v":0.06435102970875695,"d":"6%"}},{"v":13598.000000000002,"d":"13,598.00 €"}]
["Pour actualiser les données, cliquez sur l’une des actions. Sous l’onglet Données , dans le groupe Requêtes et connexions, cliquez sur Actualiser tout ou appuyez sur Ctrl+Alt+F5.",{"$error":"#VALUE!"},"Actions internationales",{"v":1200,"d":"1,200 "},{"$f":"_FV(TableauPortefeuille[[#This Row],[Société]],\"Price\")","v":{"v":29.29,"d":"29.29 €"}},{"$f":"_FV(TableauPortefeuille[[#This Row],[Société]],\"Change\")","v":{"v":0.0699994333574489,"d":"0.07 €"}},{"$f":"_FV(TableauPortefeuille[[#This Row],[Société]],\"Change (%)\",TRUE)","v":{"v":0.0023956,"d":"0.24%"}},{"$f":"IFERROR(I8/SUBTOTAL(109,TableauPortefeuille[Valeur]),\"\")","v":{"v":0.16633401913541615,"d":"17%"}},{"v":35148,"d":"35,148.00 €"}]
[null,{"$error":"#VALUE!"},"Trésorerie",{"v":10000,"d":"10,000 "},{"$f":"_FV(TableauPortefeuille[[#This Row],[Société]],\"Price\")","v":{"v":1,"d":"1.00 €"}},{"$f":"_FV(TableauPortefeuille[[#This Row],[Société]],\"Change\")","v":0},{"$f":"_FV(TableauPortefeuille[[#This Row],[Société]],\"Change (%)\",TRUE)","v":{"v":0,"d":"0.00%"}},{"$f":"IFERROR(I9/SUBTOTAL(109,TableauPortefeuille[Valeur]),\"\")","v":{"v":0.0473238930054103,"d":"5%"}},{"v":10000,"d":"10,000.00 €"}]
[null,{"$error":"#VALUE!"},"Immobilier",{"v":125,"d":"125 "},{"$f":"_FV(TableauPortefeuille[[#This Row],[Société]],\"Price\")","v":{"v":116.63,"d":"116.63 €"}},{"$f":"_FV(TableauPortefeuille[[#This Row],[Société]],\"Change\")","v":{"v":-0.249994620493774,"d":"-0.25 €"}},{"$f":"_FV(TableauPortefeuille[[#This Row],[Société]],\"Change (%)\",TRUE)","v":{"v":-2.1389E-3,"d":"-0.21%"}},{"$f":"IFERROR(I10/SUBTOTAL(109,TableauPortefeuille[Valeur]),\"\")","v":{"v":0.06899232051526255,"d":"7%"}},{"v":14578.75,"d":"14,578.75 €"}]
[null,{"$error":"#VALUE!"},"Produits de base",{"v":100,"d":"100 "},{"$f":"_FV(TableauPortefeuille[[#This Row],[Société]],\"Price\")","v":{"v":117.33,"d":"117.33 €"}},{"$f":"_FV(TableauPortefeuille[[#This Row],[Société]],\"Change\")","v":{"v":-0.27,"d":"-0.27 €"}},{"$f":"_FV(TableauPortefeuille[[#This Row],[Société]],\"Change (%)\",TRUE)","v":{"v":-0.002296,"d":"-0.23%"}},{"$f":"IFERROR(I11/SUBTOTAL(109,TableauPortefeuille[Valeur]),\"\")","v":{"v":0.05552512366324791,"d":"6%"}},{"v":11733,"d":"11,733.00 €"}]
[null,"Total",{"$nulls":6},{"$f":"IFERROR(SUBTOTAL(109,TableauPortefeuille[Valeur]), \"\")","v":{"v":211309.75,"d":"211,309.75 €"}}]

{"sheet":"Répartition des actifs","index":2,"n_rows":25,"n_cols":7,"rows_kept":25}
["Suivi des investissements","Suivi des investissements"]
[]
["Répartition des actifs","Répartition des actifs"]
[]
[]
["Voici un graphique à barres qui compare visuellement le pourcentage réel d’investissements dans chaque catégorie aux objectifs définis dans le tableau ci-dessous, dans les lignes 19 à 25."]
{"$rows_empty":12}
["Voici un tableau qui calcule le pourcentage réel d’investissements dans chaque catégorie et le compare aux objectifs.","Catégorie","Mon objectif","Réel","Écart","Seuil","Valeur"]
["Le tableau renseigne automatiquement les catégories de placement à partir du tableau Portefeuille figurant dans les cellules B19:G25. Entrez un objectif pour chaque catégorie de placement dans les cellules C20:C25, puis accédez à Données > Actualiser ou appuyez sur Ctrl+Alt+F5. ","Actions France",{"v":0.55,"d":"55%"},{"$f":"IFERROR(G20/SUBTOTAL(109,TableauRépartitionActifs[Valeur]),\"\")","v":{"v":0.5974736139719061,"d":"60%"}},{"$f":"D20 - C20","v":{"v":0.04747361397190608,"d":"4.7%"}},{"$f":"MIN(5%, $C20 * 25%)","v":{"v":0.05,"d":"5%"}},{"$f":"SUMIF(TableauPortefeuille[Catégorie], B20, TableauPortefeuille[Valeur])","v":{"v":126251.99999999999,"d":"126,252.00 €"}}]
["Quand une catégorie d’actifs dépasse la valeur de Seuil, les montants sont surlignés en jaune.","Actions internationales",{"v":0.2,"d":"20%"},{"$f":"IFERROR(G21/SUBTOTAL(109,TableauRépartitionActifs[Valeur]),\"\")","v":{"v":0.16633401913541615,"d":"17%"}},{"v":-0.03366598086458386,"d":"-3.4%"},{"v":0.05,"d":"5%"},{"$f":"SUMIF(TableauPortefeuille[Catégorie], B21, TableauPortefeuille[Valeur])","v":{"v":35148,"d":"35,148.00 €"}}]
[null,"Obligations",{"v":0.1,"d":"10%"},{"$f":"IFERROR(G22/SUBTOTAL(109,TableauRépartitionActifs[Valeur]),\"\")","v":{"v":0.06435102970875695,"d":"6%"}},{"v":-0.03564897029124306,"d":"-3.6%"},{"v":0.025,"d":"3%"},{"$f":"SUMIF(TableauPortefeuille[Catégorie], B22, TableauPortefeuille[Valeur])","v":{"v":13598.000000000002,"d":"13,598.00 €"}}]
[null,"Trésorerie",{"v":0.05,"d":"5%"},{"$f":"IFERROR(G23/SUBTOTAL(109,TableauRépartitionActifs[Valeur]),\"\")","v":{"v":0.0473238930054103,"d":"5%"}},{"v":-0.0026761069945897,"d":"-0.3%"},{"v":0.0125,"d":"1%"},{"$f":"SUMIF(TableauPortefeuille[Catégorie], B23, TableauPortefeuille[Valeur])","v":{"v":10000,"d":"10,000.00 €"}}]
[null,"Immobilier",{"v":0.05,"d":"5%"},{"$f":"IFERROR(G24/SUBTOTAL(109,TableauRépartitionActifs[Valeur]),\"\")","v":{"v":0.06899232051526255,"d":"7%"}},{"v":0.018992320515262548,"d":"1.9%"},{"v":0.0125,"d":"1%"},{"$f":"SUMIF(TableauPortefeuille[Catégorie], B24, TableauPortefeuille[Valeur])","v":{"v":14578.75,"d":"14,578.75 €"}}]
[null,"Produits de base",{"v":0.05,"d":"5%"},{"$f":"IFERROR(G25/SUBTOTAL(109,TableauRépartitionActifs[Valeur]),\"\")","v":{"v":0.05552512366324791,"d":"6%"}},{"v":0.005525123663247908,"d":"0.6%"},{"v":0.0125,"d":"1%"},{"$f":"SUMIF(TableauPortefeuille[Catégorie], B25, TableauPortefeuille[Valeur])","v":{"v":11733,"d":"11,733.00 €"}}]